[Event "MCR rapid mládeže 2023 U16"]
[Site "Harachov, Czech Republic"]
[Date "2023.09.10"]
[Round "9.10"]
[White "Buchtova, Viktorie"]
[Black "Bartova, Hana"]
[Result "1-0"]
[TimeControl "20min+5s/move"]
[WhiteElo "1556"]
[BlackElo "1389"]

1. e4 {[%clk 00:20:10]} e5 {[%clk 00:20:02]} {[%emt 00:00:09]} 2. Nf3 {[%clk
00:20:13]} {[%emt 00:00:01]} Nf6 {[%clk 00:20:06]} 3. Nxe5 {[%clk 00:20:17]}
{[%emt 00:00:02]} d6 {[%clk 00:20:10]} 4. Nf3 {[%clk 00:20:18]} {[%emt
00:00:04]} Nxe4 {[%clk 00:20:13]} {[%emt 00:00:03]} 5. c4 {[%clk 00:19:58]}
{[%emt 00:00:25]} Nf6 {[%clk 00:19:11]} {[%emt 00:01:08]} 6. d4 {[%clk
00:19:55]} {[%emt 00:00:08]} d5 {[%clk 00:18:44]} {[%emt 00:00:31]} 7. c5
{[%clk 00:17:58]} {[%emt 00:02:02]} c6 {[%clk 00:18:04]} {[%emt 00:00:45]} 8.
Bd3 {[%clk 00:17:34]} {[%emt 00:00:28]} b6 {[%clk 00:16:38]} {[%emt 00:01:32]}
9. b4 {[%clk 00:17:11]} {[%emt 00:00:28]} a5 {[%clk 00:14:48]} {[%emt
00:01:55]} 10. Qa4 {[%clk 00:15:34]} {[%emt 00:01:40]} Bb7 {[%clk 00:11:10]}
{[%emt 00:03:45]} 11. O-O {[%clk 00:15:09]} {[%emt 00:00:30]} Be7 {[%clk
00:10:38]} {[%emt 00:00:37]} 12. Bd2 {[%clk 00:12:12]} {[%emt 00:03:03]} Qc7
{[%clk 00:08:53]} {[%emt 00:01:49]} 13. bxa5 {[%clk 00:11:58]} {[%emt
00:00:18]} bxa5 {[%clk 00:06:58]} {[%emt 00:02:01]} 14. Re1 {[%clk 00:11:34]}
{[%emt 00:00:28]} Nbd7 {[%clk 00:05:01]} {[%emt 00:02:03]} 15. Nc3 {[%clk
00:10:59]} {[%emt 00:00:40]} Ba6 {[%clk 00:03:58]} {[%emt 00:01:08]} 16. Bxa6
{[%clk 00:10:41]} {[%emt 00:00:23]} Rxa6 {[%emt 00:00:01]} 17. Re2 {[%clk
00:10:01]} {[%emt 00:00:44]} Kd8 {[%emt 00:00:10]} 18. Rb1 {[%clk 00:09:05]}
{[%emt 00:00:57]} Re8 {[%clk 00:03:53]} {[%emt 00:00:13]} 19. Ng5 {[%clk
00:06:56]} {[%emt 00:02:09]} Kc8 {[%clk 00:02:09]} {[%emt 00:01:53]} 20. Nxf7
{[%clk 00:05:59]} {[%emt 00:01:01]} Ra7 {[%clk 00:01:49]} {[%emt 00:00:26]} 21.
g3 {[%clk 00:03:54]} {[%emt 00:02:10]} Nxc5 {[%clk 00:00:55]} {[%emt 00:00:59]}
22. dxc5 {[%clk 00:03:30]} {[%emt 00:00:29]} Bxc5 {[%clk 00:00:59]} {[%emt
00:00:01]} 23. Rxe8+ {[%clk 00:01:01]} {[%emt 00:02:34]} Nxe8 {[%clk 00:01:04]}
{[%emt 00:00:01]} 24. Qf4 {[%clk 00:01:04]} {[%emt 00:00:02]} Qxf7 {[%clk
00:00:46]} {[%emt 00:00:23]} 25. Rb8+ {[%clk 00:01:04]} {[%emt 00:00:05]} Kd7
{[%clk 00:00:47]} {[%emt 00:00:04]} 26. Qxf7+ {[%clk 00:01:07]} {[%emt
00:00:01]} Be7 {[%clk 00:00:49]} {[%emt 00:00:03]} 27. Qxe8+ {[%clk 00:01:09]}
{[%emt 00:00:04]} Ke6 {[%clk 00:00:54]} 28. Qxc6+ {[%clk 00:01:11]} {[%emt
00:00:02]} 1-0

[Event "MCR rapid mládeže 2023 U16"]
[Site "Harachov, Czech Republic"]
[Date "2023.09.10"]
[Round "9.11"]
[White "Horkova, Tereza"]
[Black "Kaplanova, Dominika"]
[Result "1-0"]
[TimeControl "20min+5s/move"]
[WhiteElo "1720"]
[BlackElo "1461"]

1. e4 {[%clk 00:20:09]} {[%emt 00:00:53]} c6 {[%clk 00:20:09]} {[%emt
00:00:01]} 2. d4 {[%clk 00:20:12]} {[%emt 00:00:02]} d5 {[%clk 00:20:13]}
{[%emt 00:00:01]} 3. e5 {[%clk 00:20:17]} Bf5 {[%clk 00:20:17]} {[%emt
00:00:02]} 4. Bd3 {[%clk 00:20:21]} Bxd3 {[%clk 00:20:14]} {[%emt 00:00:09]} 5.
Qxd3 {[%clk 00:20:24]} {[%emt 00:00:02]} Qa5+ {[%clk 00:20:04]} {[%emt
00:00:14]} 6. Bd2 {[%clk 00:19:36]} {[%emt 00:00:54]} Qa6 {[%clk 00:20:07]}
{[%emt 00:00:02]} 7. Qe3 {[%clk 00:15:31]} {[%emt 00:04:08]} e6 {[%clk
00:19:59]} {[%emt 00:00:14]} 8. Ne2 {[%clk 00:15:04]} {[%emt 00:00:32]} Ne7
{[%clk 00:19:12]} {[%emt 00:00:52]} 9. c3 {[%clk 00:14:00]} {[%emt 00:01:09]}
Nd7 {[%clk 00:18:10]} {[%emt 00:01:07]} 10. O-O {[%clk 00:13:39]} {[%emt
00:00:25]} Nf5 {[%clk 00:17:38]} {[%emt 00:00:38]} 11. Qf3 {[%clk 00:13:32]}
{[%emt 00:00:12]} Nb6 {[%clk 00:15:54]} {[%emt 00:01:49]} 12. Ng3 {[%clk
00:12:26]} {[%emt 00:01:11]} Ne7 {[%clk 00:14:52]} {[%emt 00:01:06]} 13. Na3
{[%clk 00:11:09]} {[%emt 00:01:23]} Ng6 {[%clk 00:14:36]} {[%emt 00:00:21]} 14.
Nc2 {[%clk 00:10:46]} {[%emt 00:00:29]} Nc4 {[%clk 00:14:05]} {[%emt 00:00:36]}
15. Bc1 {[%clk 00:10:30]} {[%emt 00:00:20]} Be7 {[%clk 00:13:00]} {[%emt
00:01:10]} 16. b3 {[%clk 00:09:08]} {[%emt 00:01:28]} Nb6 {[%clk 00:12:38]}
{[%emt 00:00:24]} 17. Qe3 {[%clk 00:08:00]} {[%emt 00:01:15]} Nd7 {[%clk
00:08:05]} {[%emt 00:04:38]} 18. Nh5 {[%clk 00:06:04]} {[%emt 00:02:01]} Rg8
{[%clk 00:07:02]} {[%emt 00:01:07]} 19. Bd2 {[%clk 00:04:53]} {[%emt 00:01:17]}
Nh4 {[%clk 00:05:29]} {[%emt 00:01:37]} 20. Ng3 {[%clk 00:04:42]} {[%emt
00:00:17]} g6 {[%clk 00:05:03]} {[%emt 00:00:30]} 21. Qh6 {[%clk 00:02:55]}
{[%emt 00:01:53]} Nf8 {[%clk 00:03:24]} {[%emt 00:01:45]} 22. Bg5 {[%clk
00:01:46]} {[%emt 00:01:15]} Bxg5 23. Qxg5 Nf5 {[%clk 00:02:29]} {[%emt
00:00:07]} 24. Rfd1 {[%clk 00:00:59]} {[%emt 00:00:57]} Qa5 {[%clk 00:01:44]}
{[%emt 00:00:50]} 25. Rd3 {[%clk 00:00:50]} {[%emt 00:00:14]} Qd8 {[%clk
00:01:46]} {[%emt 00:00:03]} 26. Qd2 {[%clk 00:00:35]} {[%emt 00:00:18]} Qe7
{[%clk 00:01:21]} {[%emt 00:00:31]} 27. c4 {[%emt 00:00:17]} h5 {[%clk
00:00:56]} {[%emt 00:00:23]} 28. cxd5 {[%clk 00:00:31]} {[%emt 00:00:06]} cxd5
{[%clk 00:00:49]} {[%emt 00:00:13]} 29. Rc1 {[%clk 00:00:24]} {[%emt 00:00:12]}
Rc8 {[%clk 00:00:46]} {[%emt 00:00:07]} 30. Rc3 {[%clk 00:00:21]} {[%emt
00:00:08]} Rxc3 {[%clk 00:00:30]} {[%emt 00:00:21]} 31. Qxc3 {[%clk 00:00:25]}
Qd7 {[%clk 00:00:34]} {[%emt 00:00:01]} 32. Nb4 {[%clk 00:00:22]} {[%emt
00:00:08]} Nxg3 {[%clk 00:00:16]} {[%emt 00:00:23]} 33. fxg3 {[%clk 00:00:18]}
{[%emt 00:00:09]} Kd8 {[%clk 00:00:14]} {[%emt 00:00:07]} 34. a4 {[%clk
00:00:20]} {[%emt 00:00:03]} a5 {[%clk 00:00:15]} {[%emt 00:00:04]} 35. Nd3
{[%clk 00:00:24]} {[%emt 00:00:01]} b6 {[%clk 00:00:19]} {[%emt 00:00:01]} 36.
b4 {[%clk 00:00:25]} {[%emt 00:00:04]} axb4 {[%clk 00:00:09]} {[%emt 00:00:15]}
37. Qxb4 {[%clk 00:00:29]} {[%emt 00:00:01]} Nh7 {[%clk 00:00:11]} {[%emt
00:00:03]} 38. Qxb6+ {[%clk 00:00:33]} {[%emt 00:00:02]} Ke8 {[%clk 00:00:15]}
39. Nc5 {[%clk 00:00:20]} {[%emt 00:00:18]} Qe7 {[%clk 00:00:16]} {[%emt
00:00:04]} 40. a5 {[%clk 00:00:24]} Kf8 {[%clk 00:00:19]} {[%emt 00:00:02]} 41.
a6 {[%clk 00:00:29]} Kg7 {[%clk 00:00:23]} 42. a7 {[%clk 00:00:22]} {[%emt
00:00:11]} Ra8 {[%clk 00:00:18]} {[%emt 00:00:11]} 43. Ra1 {[%clk 00:00:25]}
{[%emt 00:00:02]} Qg5 {[%clk 00:00:10]} {[%emt 00:00:13]} 44. Qb3 {[%clk
00:00:11]} {[%emt 00:00:18]} Qd8 {[%clk 00:00:10]} {[%emt 00:00:05]} 45. Qf3
{[%clk 00:00:09]} {[%emt 00:00:07]} Ng5 {[%clk 00:00:12]} {[%emt 00:00:03]} 46.
Qf4 {[%clk 00:00:12]} {[%emt 00:00:02]} Ne4 {[%clk 00:00:15]} {[%emt 00:00:02]}
47. Nxe4 {[%emt 00:00:02]} dxe4 {[%clk 00:00:19]} 48. Qxe4 {[%clk 00:00:20]}
Qc8 {[%clk 00:00:16]} {[%emt 00:00:07]} 49. h4 {[%clk 00:00:17]} {[%emt
00:00:08]} Qd8 {[%clk 00:00:16]} {[%emt 00:00:06]} 50. Kh2 {[%clk 00:00:21]}
{[%emt 00:00:02]} Qc8 {[%clk 00:00:19]} {[%emt 00:00:01]} 51. Qe3 {[%clk
00:00:17]} {[%emt 00:00:09]} Qb7 {[%clk 00:00:19]} {[%emt 00:00:05]} 52. Qa3
{[%clk 00:00:20]} {[%emt 00:00:02]} Qc7 {[%clk 00:00:23]} {[%emt 00:00:02]} 53.
Qa6 {[%clk 00:00:22]} {[%emt 00:00:03]} Qd7 {[%clk 00:00:21]} {[%emt 00:00:07]}
54. Qb6 {[%clk 00:00:23]} {[%emt 00:00:05]} Qc8 {[%clk 00:00:13]} {[%emt
00:00:12]} 55. Qc5 {[%clk 00:00:20]} {[%emt 00:00:08]} Qb7 {[%clk 00:00:12]}
{[%emt 00:00:07]} 56. Kh3 {[%clk 00:00:18]} {[%emt 00:00:07]} Qd7 {[%clk
00:00:13]} {[%emt 00:00:04]} 57. Qd6 {[%clk 00:00:20]} {[%emt 00:00:03]} Qc8
{[%clk 00:00:17]} {[%emt 00:00:01]} 58. d5 {[%clk 00:00:24]} {[%emt 00:00:01]}
exd5+ {[%clk 00:00:18]} {[%emt 00:00:03]} 59. Kh2 {[%clk 00:00:26]} {[%emt
00:00:03]} Qb7 {[%clk 00:00:16]} {[%emt 00:00:08]} 60. Qf6+ {[%clk 00:00:28]}
{[%emt 00:00:02]} Kg8 {[%clk 00:00:20]} 61. e6 {[%clk 00:00:29]} {[%emt
00:00:05]} Rxa7 {[%clk 00:00:20]} {[%emt 00:00:05]} 62. exf7+ {[%clk 00:00:30]}
{[%emt 00:00:03]} Qxf7 {[%emt 00:00:03]} 63. Qd8+ {[%clk 00:00:29]} {[%emt
00:00:05]} Kh7 {[%clk 00:00:23]} {[%emt 00:00:04]} 64. Rxa7 {[%clk 00:00:29]}
{[%emt 00:00:05]} Qxa7 {[%clk 00:00:27]} {[%emt 00:00:02]} 65. Qxd5 {[%clk
00:00:33]} Qg7 {[%clk 00:00:29]} {[%emt 00:00:04]} 66. Qg5 {[%clk 00:00:36]}
{[%emt 00:00:02]} Qh6 {[%clk 00:00:31]} {[%emt 00:00:03]} 67. Qf6 {[%clk
00:00:38]} {[%emt 00:00:03]} Qg7 {[%clk 00:00:34]} {[%emt 00:00:02]} 68. Qf3
{[%clk 00:00:42]} {[%emt 00:00:01]} Kg8 {[%clk 00:00:35]} {[%emt 00:00:04]} 69.
g4 {[%clk 00:00:41]} {[%emt 00:00:06]} hxg4 70. Qxg4 {[%clk 00:00:45]} Kh7
{[%clk 00:00:36]} {[%emt 00:00:03]} 71. Kh3 {[%clk 00:00:42]} {[%emt 00:00:07]}
Qc3+ {[%clk 00:00:39]} {[%emt 00:00:02]} 72. g3 {[%clk 00:00:43]} {[%emt
00:00:04]} Qf6 {[%clk 00:00:32]} {[%emt 00:00:12]} 73. Qf4 {[%clk 00:00:35]}
{[%emt 00:00:13]} Qe6+ {[%clk 00:00:24]} {[%emt 00:00:14]} 74. g4 {[%clk
00:00:32]} {[%emt 00:00:08]} Qb3+ {[%clk 00:00:28]} {[%emt 00:00:01]} 75. Qg3
{[%clk 00:00:36]} Qe6 {[%clk 00:00:25]} {[%emt 00:00:08]} 76. Qf3 {[%clk
00:00:34]} {[%emt 00:00:07]} Qd7 {[%clk 00:00:27]} {[%emt 00:00:03]} 77. Qe3
{[%clk 00:00:18]} {[%emt 00:00:21]} Qf7 {[%clk 00:00:27]} {[%emt 00:00:05]} 78.
Kg3 {[%clk 00:00:13]} {[%emt 00:00:10]} Qc7+ {[%clk 00:00:27]} {[%emt
00:00:04]} 79. Qf4 {[%clk 00:00:16]} {[%emt 00:00:02]} Qc3+ {[%clk 00:00:32]}
80. Qf3 {[%clk 00:00:21]} Qc7+ {[%clk 00:00:35]} {[%emt 00:00:03]} 81. Kf2
{[%clk 00:00:24]} {[%emt 00:00:02]} Qc2+ {[%clk 00:00:27]} {[%emt 00:00:13]} 82.
Qe2 {[%clk 00:00:26]} {[%emt 00:00:03]} Qc5+ {[%clk 00:00:25]} {[%emt
00:00:07]} 83. Qe3 {[%clk 00:00:30]} Qf8+ {[%clk 00:00:27]} {[%emt 00:00:04]}
84. Ke2 {[%clk 00:00:30]} {[%emt 00:00:05]} Qf6 {[%clk 00:00:16]} {[%emt
00:00:16]} 85. g5 {[%clk 00:00:27]} {[%emt 00:00:08]} Qb2+ {[%clk 00:00:16]}
{[%emt 00:00:05]} 86. Kf3 {[%clk 00:00:30]} {[%emt 00:00:02]} Qb7+ {[%clk
00:00:19]} {[%emt 00:00:02]} 87. Qe4 {[%clk 00:00:33]} {[%emt 00:00:02]} Qb3+
{[%clk 00:00:20]} {[%emt 00:00:05]} 88. Kf4 {[%clk 00:00:37]} Qf7+ {[%clk
00:00:24]} {[%emt 00:00:01]} 89. Ke3 {[%clk 00:00:26]} {[%emt 00:00:16]} Qb3+
{[%clk 00:00:23]} {[%emt 00:00:06]} 90. Qd3 {[%clk 00:00:25]} {[%emt 00:00:05]}
Qb6+ {[%clk 00:00:18]} {[%emt 00:00:09]} 91. Qd4 {[%clk 00:00:30]} Qe6+ {[%clk
00:00:20]} {[%emt 00:00:04]} 92. Kf4 {[%clk 00:00:30]} {[%emt 00:00:05]} Qf7+
{[%clk 00:00:19]} {[%emt 00:00:06]} 93. Qf6 {[%clk 00:00:25]} {[%emt 00:00:11]}
Qc7+ {[%clk 00:00:21]} {[%emt 00:00:02]} 94. Ke4 {[%clk 00:00:26]} {[%emt
00:00:05]} Qc4+ {[%clk 00:00:17]} {[%emt 00:00:08]} 95. Ke5 {[%clk 00:00:22]}
{[%emt 00:00:10]} Qc7+ {[%clk 00:00:09]} {[%emt 00:00:11]} 96. Ke6 {[%clk
00:00:23]} {[%emt 00:00:03]} Qc6+ {[%clk 00:00:07]} {[%emt 00:00:09]} 97. Kf7
{[%clk 00:00:25]} {[%emt 00:00:02]} Qc7+ {[%clk 00:00:11]} {[%emt 00:00:02]} 98.
Qe7 {[%clk 00:00:29]} Qc4+ {[%clk 00:00:15]} {[%emt 00:00:01]} 99. Kf8+ {[%emt
00:00:16]} 1-0

[Event "MCR rapid mládeže 2023 U16"]
[Site "Harachov, Czech Republic"]
[Date "2023.09.10"]
[Round "9.12"]
[White "Kubatova, Beta"]
[Black "Mikesova, Lenka"]
[Result "0-1"]
[TimeControl "20min+5s/move"]
[WhiteElo "1376"]
[BlackElo "1410"]

1. d4 {[%clk 00:20:07]} {[%emt 00:00:02]} d5 {[%clk 00:20:09]} {[%emt
00:00:01]} 2. c4 {[%clk 00:20:10]} {[%emt 00:00:02]} Nc6 {[%clk 00:20:13]}
{[%emt 00:00:02]} 3. Nf3 {[%clk 00:20:12]} {[%emt 00:00:02]} Bg4 {[%clk
00:20:10]} {[%emt 00:00:07]} 4. Nc3 {[%clk 00:20:08]} {[%emt 00:00:09]} Nf6
{[%clk 00:19:53]} {[%emt 00:00:22]} 5. Bg5 {[%clk 00:20:11]} {[%emt 00:00:03]}
e6 {[%clk 00:19:51]} {[%emt 00:00:07]} 6. e3 {[%clk 00:20:12]} {[%emt
00:00:03]} Bb4 {[%clk 00:19:44]} {[%emt 00:00:13]} 7. Be2 {[%clk 00:19:42]}
{[%emt 00:00:36]} O-O {[%clk 00:19:33]} {[%emt 00:00:16]} 8. O-O {[%clk
00:19:44]} {[%emt 00:00:03]} h6 {[%clk 00:18:17]} {[%emt 00:01:21]} 9. Bh4
{[%clk 00:19:44]} {[%emt 00:00:05]} Re8 {[%clk 00:16:53]} {[%emt 00:01:29]} 10.
a3 {[%clk 00:19:35]} {[%emt 00:00:13]} Bxc3 {[%clk 00:16:03]} {[%emt 00:00:55]}
11. bxc3 {[%clk 00:19:38]} {[%emt 00:00:03]} Qe7 {[%clk 00:13:06]} {[%emt
00:03:01]} 12. cxd5 {[%clk 00:15:20]} {[%emt 00:04:22]} exd5 {[%clk 00:12:54]}
{[%emt 00:00:17]} 13. Qb3 {[%clk 00:14:56]} {[%emt 00:00:30]} g5 {[%clk
00:10:57]} {[%emt 00:02:02]} 14. Bg3 {[%clk 00:14:45]} {[%emt 00:00:15]} Nd8
{[%clk 00:09:45]} {[%emt 00:01:17]} 15. h3 {[%clk 00:14:37]} {[%emt 00:00:13]}
Bh5 {[%emt 00:00:38]} 16. c4 {[%emt 00:00:53]} c6 {[%emt 00:01:47]} 17. Rab1
{[%emt 00:00:51]} dxc4 {[%clk 00:07:50]} {[%emt 00:00:01]} 18. Qxc4 {[%emt
00:00:15]} Ne4 {[%emt 00:01:21]} 19. Rbd1 {[%emt 00:00:09]} Nxg3 {[%clk
00:07:35]} {[%emt 00:00:03]} 20. fxg3 {[%clk 00:11:37]} {[%emt 00:00:02]} Qxe3+
{[%clk 00:07:31]} {[%emt 00:00:09]} 21. Rf2 {[%clk 00:11:02]} {[%emt 00:00:41]}
Bxf3 {[%clk 00:06:23]} {[%emt 00:01:13]} 22. Bxf3 {[%clk 00:10:46]} {[%emt
00:00:20]} Ne6 {[%clk 00:05:46]} {[%emt 00:00:42]} 23. Kh2 {[%clk 00:10:06]}
{[%emt 00:00:46]} Qxf2 {[%clk 00:05:46]} {[%emt 00:00:06]} 24. Bg4 {[%clk
00:10:02]} {[%emt 00:00:09]} Rad8 {[%clk 00:05:20]} {[%emt 00:00:30]} 25. Rf1
{[%clk 00:09:07]} {[%emt 00:01:00]} Qxd4 {[%clk 00:04:58]} {[%emt 00:00:27]} 26.
Bxe6 {[%clk 00:08:50]} {[%emt 00:00:22]} Rxe6 {[%clk 00:04:54]} {[%emt
00:00:09]} 27. Qc2 {[%clk 00:08:43]} {[%emt 00:00:11]} Qe3 {[%clk 00:04:42]}
{[%emt 00:00:18]} 28. Qf5 {[%clk 00:08:23]} {[%emt 00:00:25]} Rf8 {[%clk
00:04:28]} {[%emt 00:00:19]} 29. Qg4 {[%clk 00:07:47]} {[%emt 00:00:40]} Qd3
{[%clk 00:04:06]} {[%emt 00:00:27]} 30. Rd1 {[%clk 00:07:40]} {[%emt 00:00:13]}
Qe2 {[%clk 00:04:00]} {[%emt 00:00:11]} 31. Qxe2 {[%clk 00:07:32]} {[%emt
00:00:14]} Rxe2 {[%clk 00:04:03]} {[%emt 00:00:01]} 32. Rd7 {[%clk 00:07:19]}
{[%emt 00:00:18]} Rb2 {[%clk 00:04:05]} {[%emt 00:00:03]} 0-1

[Event "MCR rapid mládeže 2023 U16"]
[Site "Harachov, Czech Republic"]
[Date "2023.09.10"]
[Round "9.13"]
[White "Nguyen, Nhat Minh Thu"]
[Black "Kammova, Katerina"]
[Result "0-1"]
[TimeControl "20min+5s/move"]
[WhiteElo "1405"]
[BlackElo "1393"]

1. e4 {[%clk 00:20:09]} e6 {[%clk 00:20:08]} {[%emt 00:00:02]} 2. d4 {[%clk
00:20:12]} {[%emt 00:00:02]} d5 {[%clk 00:20:11]} {[%emt 00:00:02]} 3. exd5
{[%clk 00:20:16]} {[%emt 00:00:02]} exd5 {[%clk 00:20:15]} {[%emt 00:00:01]} 4.
Be3 {[%clk 00:20:16]} {[%emt 00:00:05]} Bd6 {[%clk 00:20:15]} {[%emt 00:00:04]}
5. Nf3 {[%clk 00:20:17]} {[%emt 00:00:05]} Ne7 {[%clk 00:20:06]} {[%emt
00:00:14]} 6. a3 {[%clk 00:20:15]} {[%emt 00:00:07]} Nf5 {[%clk 00:20:08]}
{[%emt 00:00:02]} 7. Qd2 {[%clk 00:19:40]} {[%emt 00:00:41]} Nxe3 {[%clk
00:19:29]} {[%emt 00:00:44]} 8. Qxe3+ {[%clk 00:19:43]} {[%emt 00:00:02]} Qe7
{[%clk 00:19:31]} {[%emt 00:00:02]} 9. Qxe7+ {[%clk 00:19:41]} {[%emt
00:00:09]} Bxe7 {[%clk 00:19:33]} {[%emt 00:00:02]} 10. Be2 {[%clk 00:19:42]}
{[%emt 00:00:04]} Bf5 {[%clk 00:19:33]} {[%emt 00:00:04]} 11. c3 {[%clk
00:19:38]} {[%emt 00:00:10]} f6 {[%clk 00:19:34]} {[%emt 00:00:04]} 12. Nbd2
{[%clk 00:19:26]} {[%emt 00:00:17]} Kf7 {[%clk 00:19:33]} {[%emt 00:00:05]} 13.
O-O {[%clk 00:19:17]} {[%emt 00:00:15]} Re8 {[%clk 00:19:18]} {[%emt 00:00:19]}
14. Rfe1 {[%clk 00:19:13]} {[%emt 00:00:09]} Nd7 {[%clk 00:19:17]} {[%emt
00:00:06]} 15. b3 {[%clk 00:18:04]} {[%emt 00:01:14]} a6 {[%clk 00:18:35]}
{[%emt 00:00:47]} 16. c4 {[%clk 00:17:50]} {[%emt 00:00:20]} dxc4 {[%clk
00:18:19]} {[%emt 00:00:20]} 17. Bxc4+ {[%clk 00:17:30]} {[%emt 00:00:25]} Kf8
{[%clk 00:18:16]} {[%emt 00:00:08]} 18. a4 {[%clk 00:16:20]} {[%emt 00:01:15]}
Nb6 {[%clk 00:18:08]} {[%emt 00:00:13]} 19. Be6 {[%clk 00:14:09]} {[%emt
00:02:16]} Bxe6 {[%clk 00:17:38]} {[%emt 00:00:36]} 20. Rxe6 {[%clk 00:14:10]}
{[%emt 00:00:03]} Rad8 {[%clk 00:17:19]} {[%emt 00:00:24]} 21. Rae1 {[%clk
00:11:20]} {[%emt 00:02:55]} Bb4 {[%clk 00:16:40]} {[%emt 00:00:44]} 22. Rxe8+
{[%clk 00:11:11]} {[%emt 00:00:15]} Rxe8 {[%clk 00:16:43]} {[%emt 00:00:01]} 23.
Rxe8+ {[%clk 00:11:15]} {[%emt 00:00:01]} Kxe8 {[%clk 00:16:47]} {[%emt
00:00:01]} 24. Ne4 {[%clk 00:10:33]} {[%emt 00:00:47]} Nd7 {[%clk 00:16:16]}
{[%emt 00:00:35]} 25. Kf1 {[%clk 00:10:17]} {[%emt 00:00:22]} Kf7 {[%clk
00:16:07]} {[%emt 00:00:13]} 26. Ke2 {[%clk 00:10:04]} {[%emt 00:00:19]} b6
{[%clk 00:15:51]} {[%emt 00:00:21]} 27. Ne1 {[%clk 00:09:30]} {[%emt 00:00:38]}
Nf8 {[%clk 00:15:43]} {[%emt 00:00:13]} 28. Nd3 {[%clk 00:09:16]} {[%emt
00:00:19]} Be7 {[%clk 00:15:35]} {[%emt 00:00:12]} 29. h3 {[%clk 00:08:48]}
{[%emt 00:00:33]} Ne6 {[%clk 00:15:37]} {[%emt 00:00:03]} 30. Ke3 {[%clk
00:08:35]} {[%emt 00:00:19]} g6 {[%clk 00:14:54]} {[%emt 00:00:48]} 31. g4
{[%clk 00:07:09]} {[%emt 00:01:30]} Ng7 {[%clk 00:13:38]} {[%emt 00:01:21]} 32.
f3 {[%clk 00:05:58]} {[%emt 00:01:16]} f5 {[%clk 00:13:25]} {[%emt 00:00:18]}
33. gxf5 {[%clk 00:05:38]} {[%emt 00:00:26]} Nxf5+ {[%clk 00:13:29]} 34. Kf4
{[%clk 00:04:47]} {[%emt 00:00:55]} Nxd4 {[%clk 00:13:19]} {[%emt 00:00:15]} 35.
Nc1 {[%clk 00:03:39]} {[%emt 00:01:14]} Ba3 {[%clk 00:11:56]} {[%emt 00:01:28]}
36. Ke3 {[%clk 00:01:11]} {[%emt 00:02:34]} Bxc1+ {[%clk 00:10:38]} {[%emt
00:01:22]} 37. Kxd4 {[%clk 00:01:14]} {[%emt 00:00:01]} Ke6 {[%clk 00:10:34]}
{[%emt 00:00:10]} 38. Ng3 {[%clk 00:00:31]} {[%emt 00:00:48]} h6 {[%clk
00:10:14]} {[%emt 00:00:25]} 39. Ke4 {[%clk 00:00:21]} {[%emt 00:00:14]} Bg5
{[%clk 00:09:34]} {[%emt 00:00:45]} 40. Ne2 {[%clk 00:00:22]} {[%emt 00:00:05]}
Bf6 {[%clk 00:08:59]} {[%emt 00:00:40]} 41. Nf4+ {[%clk 00:00:25]} {[%emt
00:00:01]} Kf7 {[%clk 00:09:01]} {[%emt 00:00:03]} 42. Nd5 {[%clk 00:00:20]}
{[%emt 00:00:10]} Bd8 {[%clk 00:09:04]} {[%emt 00:00:02]} 43. Ke5 {[%clk
00:00:23]} {[%emt 00:00:03]} a5 {[%clk 00:08:46]} {[%emt 00:00:23]} 44. Nf4
{[%clk 00:00:20]} {[%emt 00:00:08]} Be7 {[%clk 00:08:19]} {[%emt 00:00:31]} 45.
Nd5 {[%clk 00:00:23]} {[%emt 00:00:03]} Bd6+ {[%clk 00:08:21]} {[%emt
00:00:03]} 46. Ke4 {[%clk 00:00:27]} {[%emt 00:00:02]} Ke6 {[%clk 00:08:18]}
{[%emt 00:00:07]} 47. Nc3 {[%clk 00:00:27]} {[%emt 00:00:05]} c6 {[%clk
00:08:12]} {[%emt 00:00:11]} 48. Ne2 {[%clk 00:00:29]} {[%emt 00:00:03]} Be5
{[%clk 00:08:05]} {[%emt 00:00:12]} 49. Nc1 {[%clk 00:00:27]} {[%emt 00:00:06]}
Bd6 {[%clk 00:07:39]} {[%emt 00:00:30]} 50. Nd3 {[%clk 00:00:31]} {[%emt
00:00:02]} b5 {[%clk 00:07:32]} {[%emt 00:00:11]} 51. Nb2 {[%clk 00:00:23]}
{[%emt 00:00:14]} Be7 {[%clk 00:07:16]} {[%emt 00:00:19]} 52. Nd3 {[%clk
00:00:23]} {[%emt 00:00:06]} g5 {[%clk 00:06:02]} {[%emt 00:01:18]} 53. f4
{[%clk 00:00:18]} {[%emt 00:00:10]} gxf4 {[%clk 00:05:47]} {[%emt 00:00:20]} 54.
Nxf4+ {[%clk 00:00:21]} {[%emt 00:00:02]} Kf6 {[%clk 00:05:44]} {[%emt
00:00:08]} 55. Nh5+ {[%clk 00:00:08]} {[%emt 00:00:19]} Kg5 {[%clk 00:05:22]}
{[%emt 00:00:27]} 56. Ng3 {[%clk 00:00:12]} {[%emt 00:00:02]} bxa4 {[%clk
00:05:00]} {[%emt 00:00:27]} 57. bxa4 {[%clk 00:00:16]} Bf8 {[%clk 00:05:02]}
{[%emt 00:00:03]} 58. Nh1 {[%clk 00:00:12]} {[%emt 00:00:09]} Kh4 {[%clk
00:05:05]} {[%emt 00:00:02]} 59. Nf2 {[%clk 00:00:16]} {[%emt 00:00:01]} h5
{[%clk 00:04:57]} {[%emt 00:00:11]} 60. Kf3 {[%clk 00:00:12]} {[%emt 00:00:10]}
Bc5 {[%clk 00:04:56]} {[%emt 00:00:06]} 61. Ne4 {[%clk 00:00:16]} {[%emt
00:00:02]} Bb4 {[%clk 00:04:48]} {[%emt 00:00:11]} 62. Nf2 {[%clk 00:00:19]}
{[%emt 00:00:03]} c5 {[%clk 00:04:49]} {[%emt 00:00:05]} 63. Nd3 {[%clk
00:00:11]} {[%emt 00:00:13]} Kxh3 {[%clk 00:04:46]} {[%emt 00:00:07]} 64. Nf4
{[%clk 00:00:15]} {[%emt 00:00:02]} Kh4 {[%clk 00:04:48]} {[%emt 00:00:02]} 65.
Nxh5 {[%clk 00:00:18]} {[%emt 00:00:03]} Kxh5 {[%clk 00:04:52]} {[%emt
00:00:01]} 66. Ke3 {[%clk 00:00:22]} Kg5 {[%clk 00:04:54]} {[%emt 00:00:03]} 67.
Ke4 {[%clk 00:00:26]} Kf6 {[%clk 00:04:57]} {[%emt 00:00:02]} 68. Kd5 {[%clk
00:00:31]} {[%emt 00:00:01]} Kf5 {[%clk 00:05:01]} 69. Kc4 {[%clk 00:00:33]}
{[%emt 00:00:02]} Ke4 {[%clk 00:05:04]} {[%emt 00:00:02]} 70. Kb3 {[%clk
00:00:37]} {[%emt 00:00:02]} Kd3 {[%emt 00:00:01]} 71. Kb2 {[%emt 00:00:01]} c4
{[%clk 00:05:03]} {[%emt 00:00:08]} 72. Kc1 {[%clk 00:00:45]} {[%emt 00:00:03]}
Ba3+ {[%clk 00:05:00]} {[%emt 00:00:08]} 73. Kb1 {[%clk 00:00:46]} {[%emt
00:00:04]} c3 {[%clk 00:05:00]} {[%emt 00:00:05]} 74. Ka2 {[%clk 00:00:50]} c2
{[%clk 00:05:04]} {[%emt 00:00:01]} 75. Kxa3 {[%clk 00:00:52]} {[%emt
00:00:04]} c1=Q+ {[%clk 00:05:05]} {[%emt 00:00:03]} 76. Ka2 {[%clk 00:00:56]}
{[%emt 00:00:01]} Qc5 {[%clk 00:04:58]} {[%emt 00:00:09]} 77. Kb3 {[%clk
00:00:59]} {[%emt 00:00:04]} Qb4+ {[%clk 00:05:01]} {[%emt 00:00:02]} 78. Ka2
{[%clk 00:01:03]} {[%emt 00:00:01]} Kc2 {[%clk 00:05:02]} {[%emt 00:00:03]} 0-1